Cogmind - Beta 13 @@@ ROGUE MODE // 2024.04.26 @ 18:10:20 Player: SovietPaperclip Result: Self-destructed Performance ------------- Evolutions (3) 1500 Regions Visited (8) 1600 Robots Destroyed (114) 570 Value Destroyed (3090) 3090 Prototype IDs (4) 80 Alien Tech Used (0) 0 Bonus (242) 242 TOTAL SCORE: 7082 Bonus ------- High Alert Combat Kills 152 Follower Combat Kills 90 Cogmind --------- Core Integrity 689/700 Matter 139/300 Energy 280/280 System Corruption 0% Temperature Warm (156) Movement Rolling (180) Ox6 Location -7/Factory Parts ------- > --- POWER (1) -------- Heavy Ion Engine > --- PROPULSION (5) --- Armored Treads Armored Treads Wheel Compact Wheel Armored Wheel > --- UTILITY (5) ------ Humpback Hardened Heavy Armor Plating Hardlight Generator > --- WEAPON (2) ------- Improved Light Cannon Improved Light Cannon > --- INVENTORY (35) --- Improved Deuterium Engine Improved Treads Armored Treads Armored Treads Compact Wheel Cooling System Cooling System High-capacity Storage Unit Machine Analyzer Improved Salvage Targeting Computer Advanced Targeting Computer Advanced Targeting Computer Matter Filter Kinecellerator Weapon Cycler ECM Suite Hacking Suite Hacking Suite Authchip [Power] Authchip [Storage] Authchip [Armor] Authchip [Weapon] High-powered Tractor Beam Light EM Pulse Cannon Heavy Assault Cannon Rocket Launcher Rocket Launcher Rocket Launcher Plasma Cutter Great Maul Peak State ------------ > --- POWER ------------ Heavy Ion Engine > --- PROPULSION ------- Armored Treads Armored Treads Wheel Compact Wheel Armored Wheel > --- UTILITY ---------- Humpback Hardened Heavy Armor Plating Hardlight Generator > --- WEAPON ----------- Improved Light Cannon Improved Light Cannon > --- INVENTORY -------- Improved Deuterium Engine Improved Treads Armored Treads Armored Treads Compact Wheel Cooling System Cooling System High-capacity Storage Unit Machine Analyzer Improved Salvage Targeting Computer Advanced Targeting Computer Advanced Targeting Computer Kinecellerator Weapon Cycler ECM Suite Hacking Suite Hacking Suite Authchip [Power] Authchip [Storage] Authchip [Armor] Authchip [Weapon] High-powered Tractor Beam Light EM Pulse Cannon Heavy Assault Cannon Rocket Launcher Rocket Launcher Rocket Launcher Plasma Cutter Great Maul [Rating: 38] Favorites ----------- Power Cooled Ion Engine Engine Cooled Ion Engine Power Core Light Nuclear Core Propulsion Light Treads Treads Light Treads Wheel Compact Wheel Utility Heat Sink Device Heat Sink Storage Humpback Processor Machine Analyzer Protection Reflective Plating Weapon Improved Light Cannon Energy Cannon Light EM Pulse Cannon Ballistic Gun Assault Rifle Ballistic Cannon Improved Light Cannon Launcher Advanced EMP Blaster Build | -11 -10 -10 -9 -9 -9 -8 -8 -7 ------- Run | Yrd Mat Min Mat Min Exi Min Mat Fac Slots Evolved 6 | . . . 2 . . . 2 2 Power . | . . . . . . . . . Propulsion 3 | . . . 1 . . . 1 1 Utility 3 | . . . 1 . . . 1 1 Weapon . | . . . . . . . . . Parts Attached 82 | 5 10 . 13 6 . . 46 2 Power 6 | 1 1 . 1 1 . . 2 . Engine 5 | 1 . . 1 1 . . 2 . Core 1 | . 1 . . . . . . . Reactor . | . . . . . . . . . Propulsion 19 | 2 . . 3 1 . . 12 1 Treads 13 | 2 . . 3 1 . . 6 1 Leg . | . . . . . . . . . Wheel 6 | . . . . . . . 6 . Hover . | . . . . . . . . . Flight . | . . . . . . . . . Utility 31 | 1 3 . 5 2 . . 19 1 Device 16 | . 3 . 1 2 . . 9 1 Storage 4 | 1 . . 1 . . . 2 . Processor 1 | . . . . . . . 1 . Hackware . | . . . . . . . . . Protection 10 | . . . 3 . . . 7 . Artifact . | . . . . . . . . . Weapon 26 | 1 6 . 4 2 . . 13 . Energy Gun . | . . . . . . . . . Energy Cannon 2 | . . . . . . . 2 . Ballistic Gun 1 | 1 . . . . . . . . Ballistic Cannon 13 | . 3 . 2 1 . . 7 . Launcher 10 | . 3 . 2 1 . . 4 . Special Weapon . | . . . . . . . . . Impact Weapon . | . . . . . . . . . Slashing Weapon . | . . . . . . . . . Piercing Weapon . | . . . . . . . . . Special Melee Weapon . | . . . . . . . . . Unidentified Prototypes 4 | . . . 1 . . . 3 . Corrupted Parts 1 | . . . . . . . 1 . System Corruption 6 | . . . . . . . 6 . Parts Lost 12 | . . . 2 3 . . 7 . Power 2 | . . . . 1 . . 1 . Propulsion 8 | . . . 1 1 . . 6 . Utility 2 | . . . 1 1 . . . . Weapon . | . . . . . . . . . Highest Loss Streak 2 | . . . 1 2 . . 2 . To Critical Strikes . | . . . . . . . . . Average Slot Usage (%) 89 | . 92 100 91 99 100 100 82 84 Engine 7 | . 3 . 8 10 11 11 7 7 Core 2 | . 10 14 2 . . . . . Treads 25 | . 28 28 26 32 33 33 22 15 Wheel 4 | . . . . . . . 9 23 Device 9 | . 12 14 11 18 22 22 3 7 Storage 10 | . 14 14 11 11 11 11 9 7 Processor 2 | . . . . . . . 6 . Protection 5 | . . . 9 3 . . 5 7 Ballistic Cannon 19 | . 13 28 21 21 22 22 16 15 Naked Turns . | . . . . . . . . . Heaviest Build 241 | 12 19 19 61 60 59 59 238 241 Greatest Support 89 | 40 40 40 63 66 66 66 89 38 Greatest Overweight (x) 13 | . . . 1 . . . 13 6 Average Overweight (x) 1 | . . . . . . . 4 6 Largest Inventory Capacity 35 | 8 8 8 20 20 20 20 35 35 Average Capacity 23 | 7 8 8 16 20 20 20 34 35 Most Carried 34 | 1 7 8 19 18 19 19 34 31 Average Carried 17 | . 4 7 11 16 15 18 26 30 Final Capacity 35 | 8 8 8 20 20 20 20 35 35 Final Carried 32 | 1 7 8 18 15 19 19 32 31 Class Distribution -------------------- 59% | Mutant 40% | Hauler-Mutant Dominant Class ---------------- Mutant | -10/Materials Mutant | -10/Mines Mutant | -9/Materials Mutant | -9/Mines Mutant | -9/Exiles Mutant | -8/Mines Hauler-Mutant | -8/Materials Hauler-Mutant | -7/Factory Resources | -11 -10 -10 -9 -9 -9 -8 -8 -7 ----------- Run | Yrd Mat Min Mat Min Exi Min Mat Fac Matter Collected 2834 | 250 153 26 567 206 . 29 1443 160 Remotely 575 | . 62 . 69 179 . . 265 . Salvage Created 2726 | . 241 . 743 75 . . 1608 59 Parts 198 | . 22 . 63 12 . . 97 4 Haulers Intercepted 9 | . . . 4 . . . 5 . Recyclers Shooed 8 | . . . 3 . . . 4 1 Parts Field Recycled . | . . . . . . . . . Retrieved Matter . | . . . . . . . . . Parts Self-Destructed . | . . . . . . . . . Prevented . | . . . . . . . . . Kills | -11 -10 -10 -9 -9 -9 -8 -8 -7 ------- Run | Yrd Mat Min Mat Min Exi Min Mat Fac Combat Hostiles Destroyed 88 | . 11 . 29 9 . . 35 4 Melee 1 | . . . . 1 . . . . Guns 2 | . 2 . . . . . . . Cannons 61 | . 3 . 22 6 . . 26 4 AOE 23 | . 6 . 7 2 . . 8 . Classes Destroyed 12 | . 3 . 5 . . . 4 . Worker 3 | . . . 1 . . . 2 . Builder 3 | . . . . . . . 3 . Hauler 9 | . . . 4 . . . 5 . Recycler 3 | . . . . . . . 3 . Operator 3 | . . . 1 . . . 2 . Watcher 5 | . 1 . 3 . . . 1 . Swarmer 32 | . 3 . 14 7 . . 5 3 Grunt 34 | . 8 . 6 1 . . 18 1 Brawler 2 | . . . 1 1 . . . . Sentry 15 | . . . 8 . . . 7 . Specialist 4 | . . . . . . . 4 . Heavy 1 | . . . . . . . 1 . Best Kill Streak 8 | . 3 . 8 5 . . 6 3 Combat Bots Only 6 | . 3 . 6 5 . . 6 3 Max Kills in Single Turn 3 | . 3 . 3 2 . . 3 1 Gunslinging . | . . . . . . . . . Exploded 3 | . 2 . 3 2 . . 3 . Melee 1 | . . . . 1 . . . . Uniques/NPCs Destroyed . | . . . . . . . . . Combat | -11 -10 -10 -9 -9 -9 -8 -8 -7 -------- Run | Yrd Mat Min Mat Min Exi Min Mat Fac Hostile Shots Fired 404 | . 27 . 105 53 . . 200 19 Missed 113 | . 8 . 28 14 . . 60 3 Damage Taken 3762 | . 281 . 833 379 . . 2094 175 Core 342 | . 29 . 97 39 . . 166 11 Absorbed by Shields 163 | . . . . 31 . . 68 64 Ignored by Resistances 19 | . . . 19 . . . . . Core Remaining (%) 80 | 100 . 88 . . . 66 69 . Volleys Fired 255 | . 17 . 79 15 . . 134 10 Largest 2 | . 2 . 2 2 . . 2 2 Hottest 92 | . 78 . 78 78 . . 92 78 Shots Fired 486 | . 27 . 158 30 . . 251 20 Gun 11 | . 11 . . . . . . . Cannon 452 | . 11 . 154 27 . . 240 20 Launcher 23 | . 5 . 4 3 . . 11 . Special . | . . . . . . . . . Kinetic 453 | . 22 . 154 27 . . 230 20 Thermal . | . . . . . . . . . Explosive 19 | . 5 . 4 3 . . 7 . Electromagnetic 14 | . . . . . . . 14 . Robot Hit Streak 13 | . 8 . 11 13 . . 10 5 Robot Miss Streak 5 | . 1 . 5 3 . . 4 2 Penetration Max . | . . . . . . . . . Secondary Targets . | . . . . . . . . . Shots Hit Robots 288 | . 19 . 85 21 . . 151 12 Core Hits 143 | . 15 . 42 7 . . 74 5 Critical Kills . | . . . . . . . . . Critical Parts Destroyed . | . . . . . . . . . Critical Strikes 10 | . . . 3 1 . . 6 . Blast 10 | . . . 3 1 . . 6 . Melee Attacks . | . . . . . . . . . Impact . | . . . . . . . . . Slashing . | . . . . . . . . . Piercing . | . . . . . . . . . Sneak Attacks . | . . . . . . . . . Combat Hostiles . | . . . . . . . . . Follow-up Attacks . | . . . . . . . . . Damage Inflicted 7864 | . 702 . 2288 633 . . 3982 259 Guns 100 | . 100 . . . . . . . Cannons 5821 | . 187 . 1832 460 . . 3083 259 Explosions 1911 | . 415 . 456 147 . . 893 . Melee . | . . . . . . . . . Ramming 32 | . . . . 26 . . 6 . Kinetic 5788 | . 287 . 1832 460 . . 2950 259 Thermal 194 | . . . . . . . 194 . Explosive 1446 | . 415 . 456 147 . . 428 . Electromagnetic 404 | . . . . . . . 404 . Impact . | . . . . . . . . . Slashing . | . . . . . . . . . Piercing . | . . . . . . . . . Highest Corruption 6 | . . . . . . . 6 . Average Corruption 6 | . . . . . . . 6 . Corruption Purged . | . . . . . . . . . Corruption Blocked . | . . . . . . . . . Effects 33 | . . . . . . . 33 . Message Errors 5 | . . . . . . . 5 . Matter Fused 5 | . . . . . . . 5 . Heat Flow Errors 10 | . . . . . . . 10 . Energy Discharges 5 | . . . . . . . 5 . Data Loss (minor) 2 | . . . . . . . 2 . Misfires 3 | . . . . . . . 3 . Alerts 1 | . . . . . . . 1 . Weapon Failures 2 | . . . . . . . 2 . Overload Shots . | . . . . . . . . . Overflow Damage 168 | . . . 54 52 . . 62 . Projectiles 64 | . . . 1 22 . . 41 . Explosions 103 | . . . 53 29 . . 21 . Melee 1 | . . . . 1 . . . . Knockbacks 53 | . 5 . 14 3 . . 30 1 Impact . | . . . . . . . . . Kinetic 47 | . 5 . 13 3 . . 25 1 Secondary 6 | . . . 1 . . . 5 . Self-Inflicted Damage 254 | . 68 . 40 45 . . 101 . Shots 12 | . 4 . 1 1 . . 6 . Rammed 3 | . . . . 1 . . 2 . Targets Rammed 4 | . . . . 2 . . 2 . Kicked . | . . . . . . . . . Crushed 1 | . . . . 1 . . . . Highest Temperature 318 | . 26 . 4 . . . 318 156 Average Temperature 83 | . 17 . 3 . . . 87 71 Received Heat Transfer 1184 | . 111 . 195 6 . . 836 36 Effects 6 | . . . . . . . 6 . Energy Bleed 2 | . . . . . . . 2 . Interference 4 | . . . . . . . 4 . Siege Activations . | . . . . . . . . . Robots Corrupted 1 | . . . . . . . 1 . Combat Hostiles 1 | . . . . . . . 1 . Parts Fried 4 | . . . . 1 . . 3 . Impact Corruptions 1 | . . . . 1 . . . . Robots Melted . | . . . . . . . . . Combat Hostiles . | . . . . . . . . . Parts Melted . | . . . . . . . . . Heat Transferred 300 | . . . . . . . 300 . Parts Sabotaged . | . . . . . . . . . Parts Stolen . | . . . . . . . . . Parts Stripped . | . . . . . . . . . Power Chain Reactions 4 | . . . . . . . 4 . Alert | -11 -10 -10 -9 -9 -9 -8 -8 -7 ------- Run | Yrd Mat Min Mat Min Exi Min Mat Fac Peak Influence 589 | . 325 126 589 339 . . 579 378 Initial 263 | . . 126 48 229 . . . 263 Average 256 | . 154 126 227 255 . . 326 282 Maximum Alert Level 2 | . 1 . 2 1 . . 2 1 Low Security (%) 37 | 100 78 100 45 3 . 100 27 . Level 1 39 | . 21 . 32 96 . . 29 100 Level 2 23 | . . . 21 . . . 43 . Level 3 . | . . . . . . . . . Level 4 . | . . . . . . . . . Level 5 . | . . . . . . . . . High Security . | . . . . . . . . . Max Security . | . . . . . . . . . Squads Dispatched 11 | . 1 . 2 . . . 7 1 Investigation 2 | . 1 . . . . . . 1 Extermination . | . . . . . . . . . Reinforcement 9 | . . . 2 . . . 7 . Assault . | . . . . . . . . . Garrison . | . . . . . . . . . Intercept . | . . . . . . . . . Searches Triggered . | . . . . . . . . . Construction Impeded 1 | . . . 1 . . . . . Haulers Reinforced . | . . . . . . . . . Active Scanning Responses . | . . . . . . . . . Cargo Convoy Interrupts . | . . . . . . . . . Stealth | -11 -10 -10 -9 -9 -9 -8 -8 -7 --------- Run | Yrd Mat Min Mat Min Exi Min Mat Fac Distress Signals 7 | . 1 . 3 . . . 3 . Communications Jammed . | . . . . . . . . . Distress Signals . | . . . . . . . . . Times Spotted 127 | . 13 . 38 9 . . 61 6 Peak Tracking Total 6 | . 4 . 6 5 . . 5 3 Tactical Retreats 5 | . . . . . . . 5 . Traps | -11 -10 -10 -9 -9 -9 -8 -8 -7 ------- Run | Yrd Mat Min Mat Min Exi Min Mat Fac Traps Triggered 3 | . 1 . . . . . 2 . Indirectly . | . . . . . . . . . Trap Hack Attempts . | . . . . . . . . . Triggered . | . . . . . . . . . Disarmed . | . . . . . . . . . Reprogrammed . | . . . . . . . . . Reused . | . . . . . . . . . Traps Extracted . | . . . . . . . . . Installed . | . . . . . . . . . Triggered . | . . . . . . . . . Machines | -11 -10 -10 -9 -9 -9 -8 -8 -7 ---------- Run | Yrd Mat Min Mat Min Exi Min Mat Fac Machines Disabled 6 | . . . 2 1 . . 3 . Max in Single Turn 1 | . . . 1 1 . . 1 . Machines Repaired . | . . . . . . . . . Machines Dismantled . | . . . . . . . . . Machines Sabotaged . | . . . . . . . . . Overloaded Fab Kills . | . . . . . . . . . Hacking | -11 -10 -10 -9 -9 -9 -8 -8 -7 --------- Run | Yrd Mat Min Mat Min Exi Min Mat Fac Machines Accessed 13 | . 4 . 3 . 1 . 4 1 Terminals 11 | . 4 . 3 . . . 4 . Fabricators . | . . . . . . . . . Repair Stations . | . . . . . . . . . Recycling Units . | . . . . . . . . . Scanalyzers . | . . . . . . . . . Garrison Access 1 | . . . . . . . . 1 Total Hacks 27 | . 8 . 5 . 1 . 10 3 Successful 9 | . 1 . 4 . 1 . 3 . Failed 18 | . 7 . 1 . . . 7 3 Catastrophic 4 | . 2 . . . . . 2 . Database Lockouts . | . . . . . . . . . Manual 13 | . 6 . 2 . . . 5 . Terminals 23 | . 8 . 5 . . . 10 . Fabricators . | . . . . . . . . . Repair Stations . | . . . . . . . . . Recycling Units . | . . . . . . . . . Scanalyzers . | . . . . . . . . . Garrison Access 3 | . . . . . . . . 3 Terminal Hacks 7 | . 1 . 2 . 1 . 3 . Record 1 | . . . . . 1 . . . Part Schematic 1 | . 1 . . . . . . . Level Access Points 1 | . . . 1 . . . . . Branch Access Points 1 | . . . 1 . . . . . Alert Level 1 | . . . . . . . 1 . Unreport Threat 1 | . . . . . . . 1 . Zone Layout 1 | . . . . . . . 1 . Fabricator Hacks . | . . . . . . . . . Repair Station Hacks . | . . . . . . . . . Recycling Unit Hacks . | . . . . . . . . . Scanalyzer . | . . . . . . . . . Garrison Access Hacks . | . . . . . . . . . Unauthorized Hacks 2 | . . . 2 . . . . . Terminals 2 | . . . 2 . . . . . Botnet 2 | . . . 2 . . . . . Fabricators . | . . . . . . . . . Repair Stations . | . . . . . . . . . Recycling Units . | . . . . . . . . . Scanalyzers . | . . . . . . . . . Garrison Access . | . . . . . . . . . Data Cores Recovered . | . . . . . . . . . Used . | . . . . . . . . . Hacking Detections 10 | . 4 . 2 . . . 3 1 Full Trace Events 1 | . . . . . . . . 1 Feedback Events . | . . . . . . . . . Feedback Blocked . | . . . . . . . . . Robot Schematics Acquired . | . . . . . . . . . Robots Built . | . . . . . . . . . Authchips . | . . . . . . . . . Time . | . . . . . . . . . Total Robot Build Rating . | . . . . . . . . . Part Schematics Acquired 1 | . 1 . . . . . . . Parts Built . | . . . . . . . . . Authchips . | . . . . . . . . . Time . | . . . . . . . . . Total Part Build Rating . | . . . . . . . . . Parts Repaired . | . . . . . . . . . Time . | . . . . . . . . . Parts Recycled . | . . . . . . . . . Recycled Matter . | . . . . . . . . . Retrieved Matter . | . . . . . . . . . Retrieved Components . | . . . . . . . . . Parts Scanalyzed . | . . . . . . . . . Part Schematics Acquired . | . . . . . . . . . Parts Damaged . | . . . . . . . . . Bothacking | -11 -10 -10 -9 -9 -9 -8 -8 -7 ------------ Run | Yrd Mat Min Mat Min Exi Min Mat Fac Used RIF Installer . | . . . . . . . . . Robots Hacked . | . . . . . . . . . Non-combat . | . . . . . . . . . Combat . | . . . . . . . . . Robot Hacks Applied . | . . . . . . . . . Relay Couplers Released . | . . . . . . . . . Fabnet Peak Effective % . | . . . . . . . . . Robots Rewired . | . . . . . . . . . Allies Hacked . | . . . . . . . . . Hacks Repelled . | . . . . . . . . . Allies | -11 -10 -10 -9 -9 -9 -8 -8 -7 -------- Run | Yrd Mat Min Mat Min Exi Min Mat Fac Total Allies 3 | . . . . 3 . . . . Largest Group 3 | . . . . 3 3 3 3 . Highest-Rated Group 40 | . . . . 40 40 40 40 . Highest-Rated Ally 16 | . . . . 16 16 16 16 . Total Orders . | . . . . . . . . . Ally Attacks 23 | . . . . . . . 23 . Total Damage 224 | . . . . . . . 224 . Kills 6 | . . . . . . . 6 . Allies Corrupted . | . . . . . . . . . Allies Melted . | . . . . . . . . . Intel | -11 -10 -10 -9 -9 -9 -8 -8 -7 ------- Run | Yrd Mat Min Mat Min Exi Min Mat Fac Robot Analysis Total . | . . . . . . . . . Derelict Logs Recovered 2 | . . . . 2 . . . . Drone Launches . | . . . . . . . . . Drone Recoveries . | . . . . . . . . . Exploration | -11 -10 -10 -9 -9 -9 -8 -8 -7 ------------- Run | Yrd Mat Min Mat Min Exi Min Mat Fac Turns Passed 5631 | 66 389 311 1390 754 265 77 2197 182 Spaces Moved 2414 | 38 192 194 593 433 165 48 669 82 Core 2 | 2 . . . . . . . . Treads 1943 | 36 192 194 593 433 165 48 282 . Legs . | . . . . . . . . . Wheels 469 | . . . . . . . 387 82 Hover . | . . . . . . . . . Flight . | . . . . . . . . . Fastest Speed 50 | 50 160 160 160 160 160 160 160 180 Average Speed 190 | 154 160 160 186 160 160 160 246 180 Slowest Speed 880 | 160 160 160 240 160 160 160 880 180 Overloaded Moves . | . . . . . . . . . Propulsion Burnouts . | . . . . . . . . . Robots Hopped . | . . . . . . . . . Cave-ins Triggered . | . . . . . . . . . Exploration Rate (%) 44 | 3 46 58 59 92 51 14 74 3 Regions Visited 8 Branch Regions 4 Pre-discovered Areas 2 | . . . . 1 1 . . . Known Exits Taken 2 | . . . 1 . . 1 . . Unknown Exits Taken 6 | 1 1 1 . 1 1 . 1 . Scrap Searched 3 | . . 1 . 1 . 1 . . Spaces Dug . | . . . . . . . . . Terrain Destroyed 173 | . 45 . 38 27 . . 63 . Melee . | . . . . . . . . . Projectile 13 | . . . 2 . . . 11 . AOE 160 | . 45 . 36 27 . . 52 . Terrain Rammed . | . . . . . . . . . Walls Destroyed . | . . . . . . . . . Machines Disabled . | . . . . . . . . . Actions | -11 -10 -10 -9 -9 -9 -8 -8 -7 --------- Run | Yrd Mat Min Mat Min Exi Min Mat Fac Total 2914 | 43 245 196 717 462 166 49 940 96 Wait 82 | . 15 . 14 7 . . 45 1 Move 2406 | 37 191 193 592 432 164 47 668 82 Hop . | . . . . . . . . . Pick Up 56 | 1 8 2 13 . 2 1 28 1 Fast Attach 26 | 5 2 . 5 . . . 14 . Attach 15 | . 2 . . 3 . . 8 2 Detach 3 | . 2 . . . . . 1 . Swap 41 | . 6 . 8 3 . . 24 . Drop 26 | . 2 1 6 . . 1 16 . Fire 255 | . 17 . 79 15 . . 134 10 Melee . | . . . . . . . . . Ram . | . . . . . . . . . Kick . | . . . . . . . . . Crush 4 | . . . . 2 . . 2 . Escape Stasis . | . . . . . . . . . Rewire . | . . . . . . . . . Trap . | . . . . . . . . . Miscellaneous . | . . . . . . . . . Route ------- -11/Scrapyard -10/Materials (discovered 2 exits: *Mat / *Min) -10/Mines -9/Materials (discovered 6 exits: *Mat x3 / *Min x2 / *Sto) -9/Mines (discovered 3 exits: *Mat x2 / *Exi) -9/Exiles -8/Mines -8/Materials (discovered 2 exits: *Fac x2) -7/Factory History --------- Turn | Location | Event 10 | -11/Scrapyard | Discovered new exit (range 15) 67 | -11/Scrapyard | Entered Materials 315 | -10/Materials | Build established: Mutant 369 | -10/Materials | Discovered new exit (range 10) 438 | -10/Materials | Discovered new exit (range 11) 456 | -10/Materials | Entered Mines 667 | -10/Mines | Received a Rocket Launcher from a helpful Derelict 727 | -10/Mines | Discovered new exit (range 11) 767 | -10/Mines | Entered Materials 767 | -9/Materials | Evolved 2 slots: Propulsion x1, Utility x1 796 | -9/Materials | Identified exit to Mines 796 | -9/Materials | Identified exit to Storage 1980 | -9/Materials | Discovered new exit (range 10) 2083 | -9/Materials | Identified exit to Materials 2157 | -9/Materials | Entered Mines 2169 | -9/Mines | Learned location of 1 exit from Lower Caves 2442 | -9/Mines | Discovered exit to Materials (range 5) 2568 | -9/Mines | Discovered exit to Materials (range 7) 2761 | -9/Mines | Assisted by bots powering up and referring to "LRC-V3" 2875 | -9/Mines | Found a hidden stash of uninstalled traps 2903 | -9/Mines | Deemed a non-threat by the Exiles lab entrance 2905 | -9/Mines | Discovered new exit (range 5) 2911 | -9/Mines | Entered Exiles 2911 | -9/Exiles | Accompanied by 3 allies 2948 | -9/Exiles | Met 8R-AWN 2977 | -9/Exiles | Met EX-HEX 3023 | -9/Exiles | Met EX-BIN 3043 | -9/Exiles | Met EX-DEC 3052 | -9/Exiles | Learned location of Zion (-6) 3155 | -9/Exiles | Discovered new exit (range 14) 3176 | -9/Exiles | Entered Mines 3176 | -8/Mines | Accompanied by 3 allies 3239 | -8/Mines | Discovered exit to Materials (range 5) 3253 | -8/Mines | Entered Materials 3253 | -8/Materials | Accompanied by 3 allies 3253 | -8/Materials | Evolved 2 slots: Propulsion x1, Utility x1 3686 | -8/Materials | Build established: Hauler-Mutant 4085 | -8/Materials | Discovered new exit (range 8) 5398 | -8/Materials | Discovered new exit (range 15) 5450 | -8/Materials | Entered Factory 5450 | -7/Factory | Evolved 2 slots: Propulsion x1, Utility x1 5632 | -7/Factory | Self-destructed Last Messages --------------- lockdown mode. 05584_ S-27 Virus destroyed. 05591_ K-01 Serf collects debris. 05593_ S-27 Virus destroyed. 05595_ K-01 Serf collects debris. 05595_ R-06 Scavenger collects Lgt. Nuclear Core. 05596_ R-06 Scavenger knocked back. 05598_ K-01 Serf collects debris. 05599_ Acquired 15 matter. 05603_ Acquired 32 matter. 05603_ K-01 Serf collects debris. 05606_ Acquired 5 matter. 05607_ K-01 Serf collects debris. 05608_ Acquired 4 matter. 05610_ K-01 Serf collects debris. 05612_ Acquired 104 matter. 05613_ K-01 Serf collects debris. 05626_ G-47 Trooper destroyed. 05629_ K-01 Serf collects debris. Map ----- +----------------------------------------------------+ | ????????????????? #????? | | ????????????????? #????? | | ????????????????? #????? | | ????????????????? #????? | | ????????????????? #????? | | ????????????????? ############+###########????? | | ??????????????????????????# #?????????????? | | ??????????????????????????# """ #?????????????? | | ??????????????????????????# """ #?????????????? | | ??????????????????????????# """ #?????????????? | | ??????????????????????????# #?????????????? | | ??????????????????????????# """ #?????????????? | | ??????????????????????????# G" #?????????????? | | ??????????????????????????+ """ #?????????????? | | ?????????????? ???????????# #?????????????? | | ?????????????? "?????????####+#####?????????????? | | ??????????????? ???????????# #?????????????????? | | ???????????????? !??????????# #?????????????????? | | ???????????????? ?????????# #?????????????????? | | ????????????????""" ????????#[#?????????????????? | | ??????????????" """ ######### #####?????????????? | | ??????????????" " k #?????????????? | | ????????????????"F" [ % # "??????? | | ?????????? """w r + "??????? | | ?????????? % ! # ""?????? | | ?????????? %g @ #? ????? | | ????????????? ################# #?? ?????? | | ??????????????????????????????? #???? ?????? | | ??????????????????????????????? +????? ??????? | | ??????????????????????????????? #?????????????? | | ??????????????????????????????? #?????????????? | | ??????????????????????????????? #?????????????? | | ???????????????????????????????### #?????????????? | | ?????????????????????????????????? #?????????????? | | ?????????????????????????????????? ?????????????? | | ???????????????????????????????????#?????????????? | | ?????????????????????????????????????????????????? | | ?????????????????????????????????????????????????? | | ?????????????????????????????????????????????????? | | ?????????????????????????????????????????????????? | | ?????????????????????????????????????????????????? | | ?????????????????????????????????????????????????? | | ?????????????????????????????????????????????????? | | ?????????????????????????????????????????????????? | | ?????????????????????????????????????????????????? | | ?????????????????????????????????????????????????? | | ?????????????????????????????????????????????????? | | ?????????????????????????????????????????????????? | | ?????????????????????????????????????????????????? | | ?????????????????????????????????????????????????? | +----------------------------------------------------+ Best States ------------- Heat Dissipation 53 Energy Generation 16 Energy Capacity 290 Matter Stores 300 Matter Capacity 300 Sight Range 16 Terrain Scan Density 10 Armor Coverage 600 Resistance: TH 10 Evasion (%) 40 Recoil Reduction 4 Authchip Count 4 Item Schematics ----------------- Cargo Storage Unit | -10/Materials | Hacked Robot Schematics ------------------ None Fabricated ------------ Nothing Alien Tech Used ----------------- None Achievements -------------- None Challenges ------------ None Game ------ Seed GreatMyomerShotgun Manual? 0 Play Time 00:35:19 Cumulative 113.4 hours Start 2024.04.26 @ 16:28:39 End 2024.04.26 @ 18:10:20 Sessions 2 Manual Loads 0 Difficulty Rogue Special Mode None Game No. 143 Rogue 143 Adventurer 0 Explorer 0 Win Type - Total 1 Types 1/0/0/0/0/0/0/0/0 Lore% 48 Gallery% 52 Achievement% 50 Wizard Run 0 Options --------- Layout 1 ASCII 0 Keyboard 0 Movement Mouse Keybinds 0 Fullscreen 2 Font 32/Smallcaps Map View 50x40 Zoom Use 0% Tactical HUD 1 Map Filters NONE Filters NONE Steam 1 RUN: 9899690d-d477-4a2c-95aa-4cdd079757e3